[Event "Late-Titled-Tuesday-Blitz-October-24-2023"]
[Site "Chess.com"]
[Date "2023.10.24"]
[Round "2"]
[White "Truequitos"]
[Black "NowInChess"]
[Result "1-0"]
[WhiteElo "2469"]
[BlackElo "2180"]
[TimeControl "180+1"]
[EndTime "14:20:26 PDT"]
[Termination "Truequitos won by resignation"]

1. c4 {[%clk 0:02:57.4]} 1... e5 {[%clk 0:02:59.3]} 2. b3 {[%clk 0:02:55.7]}
2... Nc6 {[%clk 0:02:59.2]} 3. Bb2 {[%clk 0:02:56.3]} 3... Nf6 {[%clk
0:02:53.1]} 4. e3 {[%clk 0:02:56.8]} 4... g6 {[%clk 0:02:46.3]} 5. Ne2 {[%clk
0:02:57.3]} 5... Bg7 {[%clk 0:02:45.9]} 6. g3 {[%clk 0:02:57.5]} 6... O-O {[%clk
0:02:45.7]} 7. Bg2 {[%clk 0:02:58.1]} 7... d6 {[%clk 0:02:45.7]} 8. O-O {[%clk
0:02:58.6]} 8... Nh5 {[%clk 0:02:36.7]} 9. d4 {[%clk 0:02:57.5]} 9... Qe7 {[%clk
0:02:24.5]} 10. Nbc3 {[%clk 0:02:57]} 10... f5 {[%clk 0:02:16.7]} 11. Nd5 {[%clk
0:02:56.8]} 11... Qf7 {[%clk 0:02:17.3]} 12. Rc1 {[%clk 0:02:56]} 12... Kh8
{[%clk 0:02:15.2]} 13. Qc2 {[%clk 0:02:54.5]} 13... Be6 {[%clk 0:02:05.3]} 14.
Qb1 {[%clk 0:02:54.1]} 14... Nd8 {[%clk 0:01:52.8]} 15. Qa1 {[%clk 0:02:53.2]}
15... c6 {[%clk 0:01:48.5]} 16. Nb4 {[%clk 0:02:43.7]} 16... e4 {[%clk
0:01:42.1]} 17. d5 {[%clk 0:02:43.8]} 17... Bd7 {[%clk 0:01:34.7]} 18. dxc6
{[%clk 0:02:42.1]} 18... bxc6 {[%clk 0:01:33.2]} 19. Rfd1 {[%clk 0:02:42.2]}
19... Nb7 {[%clk 0:01:20.1]} 20. Bxg7+ {[%clk 0:02:20.6]} 20... Qxg7 {[%clk
0:01:15.1]} 21. Qxg7+ {[%clk 0:02:19.9]} 21... Kxg7 {[%clk 0:01:15.2]} 22. c5
{[%clk 0:02:20.5]} 22... d5 {[%clk 0:01:13.4]} 23. Nxd5 {[%clk 0:02:19.7]} 23...
cxd5 {[%clk 0:01:03.3]} 24. c6 {[%clk 0:02:20.6]} 24... Bc8 {[%clk 0:01:03.5]}
25. cxb7 {[%clk 0:02:05.1]} 25... Bxb7 {[%clk 0:01:04.4]} 26. Rc7+ {[%clk
0:02:00.8]} 26... Rf7 {[%clk 0:01:04.3]} 27. Rdc1 {[%clk 0:02:01.7]} 27... Rf8
{[%clk 0:01:03.6]} 28. Nd4 {[%clk 0:02:00.7]} 28... Kf6 {[%clk 0:00:56.6]} 29.
Bf1 {[%clk 0:01:53.6]} 29... Rxc7 {[%clk 0:00:55.3]} 30. Rxc7 {[%clk 0:01:53.3]}
30... Rf7 {[%clk 0:00:56]} 31. Rxf7+ {[%clk 0:01:50.9]} 31... Kxf7 {[%clk
0:00:55.7]} 32. Nb5 {[%clk 0:01:51.8]} 32... Ke7 {[%clk 0:00:46.5]} 33. Nxa7
{[%clk 0:01:51.3]} 33... Nf6 {[%clk 0:00:42.4]} 34. Nb5 {[%clk 0:01:51.1]} 34...
Kd7 {[%clk 0:00:35.8]} 35. Nd4 {[%clk 0:01:51.1]} 35... Ng4 {[%clk 0:00:35.8]}
36. Bb5+ {[%clk 0:01:48.7]} 36... Kd6 {[%clk 0:00:28.8]} 37. b4 {[%clk
0:01:46.9]} 37... Ne5 {[%clk 0:00:26.2]} 38. a4 {[%clk 0:01:46.8]} 38... Nc4
{[%clk 0:00:21.9]} 39. Bxc4 {[%clk 0:01:45]} 39... dxc4 {[%clk 0:00:22.8]} 40.
Kf1 {[%clk 0:01:44.8]} 40... c3 {[%clk 0:00:18.8]} 41. Ke2 {[%clk 0:01:43.3]}
41... Kd5 {[%clk 0:00:19.2]} 42. Kd1 {[%clk 0:01:42.1]} 42... Kc4 {[%clk
0:00:19.2]} 43. b5 {[%clk 0:01:39.8]} 43... Kb4 {[%clk 0:00:18]} 44. Kc2 {[%clk
0:01:37.9]} 44... Bd5 {[%clk 0:00:16.6]} 45. Ne2 {[%clk 0:01:24.3]} 45... Bb3+
{[%clk 0:00:15.6]} 46. Kc1 {[%clk 0:01:24.5]} 46... Bxa4 {[%clk 0:00:14.9]} 47.
b6 {[%clk 0:01:23.7]} 47... Bc6 {[%clk 0:00:15.5]} 48. Nd4 {[%clk 0:01:23.2]}
48... Kc5 {[%clk 0:00:11.5]} 49. Ne6+ {[%clk 0:01:09.1]} 49... Kxb6 {[%clk
0:00:11.7]} 50. Kc2 {[%clk 0:01:09.4]} 50... Be8 {[%clk 0:00:07.1]} 51. Kxc3
{[%clk 0:01:07.2]} 51... Kc6 {[%clk 0:00:07.4]} 52. Kd4 {[%clk 0:01:07.4]} 52...
Kd6 {[%clk 0:00:07.9]} 53. Nf4 {[%clk 0:01:05.2]} 53... g5 {[%clk 0:00:06.3]}
54. Nd5 {[%clk 0:01:03.2]} 54... Bf7 {[%clk 0:00:06.4]} 55. Nf6 {[%clk
0:01:03.3]} 55... h6 {[%clk 0:00:05.4]} 56. h4 {[%clk 0:00:47.2]} 56... Ke7
{[%clk 0:00:04.9]} 57. Ke5 {[%clk 0:00:40.9]} 57... Be6 {[%clk 0:00:01.3]} 58.
hxg5 {[%clk 0:00:34.1]} 58... hxg5 {[%clk 0:00:02.2]} 59. Nh7 {[%clk 0:00:34.8]}
59... g4 {[%clk 0:00:01.8]} 60. Ng5 {[%clk 0:00:35.4]} 60... Bd7 {[%clk
0:00:01.4]} 61. Nh7 {[%clk 0:00:33.9]} 61... Bc8 {[%clk 0:00:02.1]} 62. Nf6
{[%clk 0:00:34.1]} 62... Be6 {[%clk 0:00:02.2]} 63. Nh7 {[%clk 0:00:29.3]} 63...
Bd7 {[%clk 0:00:02.7]} 64. Kf4 {[%clk 0:00:29.9]} 64... Kf7 {[%clk 0:00:02]} 65.
Kg5 {[%clk 0:00:30.2]} 65... Kg7 {[%clk 0:00:02.2]} 66. Nf6 {[%clk 0:00:30.8]}
66... Be6 {[%clk 0:00:02.4]} 67. Nh5+ {[%clk 0:00:30.5]} 67... Kf7 {[%clk
0:00:02.3]} 68. Nf4 {[%clk 0:00:31.4]} 68... Bd7 {[%clk 0:00:02]} 69. Nd5 {[%clk
0:00:31]} 69... Ke6 {[%clk 0:00:02.3]} 70. Nb6 {[%clk 0:00:29.9]} 70... Bc6
{[%clk 0:00:02.6]} 71. Nc4 {[%clk 0:00:28.8]} 71... Bd5 {[%clk 0:00:02.1]} 72.
Nd2 {[%clk 0:00:26.2]} 72... Ke5 {[%clk 0:00:02.2]} 73. Nb1 {[%clk 0:00:24.8]}
73... Ke6 {[%clk 0:00:02.6]} 74. Nc3 {[%clk 0:00:24.9]} 74... Bc6 {[%clk
0:00:03]} 75. Ne2 {[%clk 0:00:25]} 75... Ke5 {[%clk 0:00:03]} 76. Nf4 {[%clk
0:00:21.8]} 76... Bd7 {[%clk 0:00:03.6]} 77. Ng6+ {[%clk 0:00:22.4]} 77... Ke6
{[%clk 0:00:03.7]} 78. Nf8+ {[%clk 0:00:21.9]} 78... Ke7 {[%clk 0:00:04.3]} 79.
Nxd7 {[%clk 0:00:22.8]} 79... Kxd7 {[%clk 0:00:05]} 80. Kxf5 {[%clk 0:00:23.7]}
80... Ke7 {[%clk 0:00:05.3]} 81. Kxe4 {[%clk 0:00:24.3]} 81... Ke6 {[%clk
0:00:06]} 82. Kf4 {[%clk 0:00:25.2]} 82... Kf6 {[%clk 0:00:06.1]} 83. Kxg4
{[%clk 0:00:25.9]} 1-0

[Event "Late-Titled-Tuesday-Blitz-October-24-2023"]
[Site "Chess.com"]
[Date "2023.10.24"]
[Round "2"]
[White "Maitreia"]
[Black "twitchTriniCupid"]
[Result "1-0"]
[WhiteElo "2641"]
[BlackElo "2342"]
[TimeControl "180+1"]
[EndTime "14:20:31 PDT"]
[Termination "Maitreia won by checkmate"]

1. c4 {[%clk 0:02:56.5]} 1... e5 {[%clk 0:02:58.9]} 2. g3 {[%clk 0:02:56.6]}
2... Nf6 {[%clk 0:02:56.1]} 3. Bg2 {[%clk 0:02:56.5]} 3... c6 {[%clk 0:02:48.1]}
4. Nf3 {[%clk 0:02:56.1]} 4... e4 {[%clk 0:02:47]} 5. Nd4 {[%clk 0:02:56.8]}
5... Bc5 {[%clk 0:02:45.5]} 6. Nb3 {[%clk 0:02:56.4]} 6... Bb6 {[%clk
0:02:44.6]} 7. c5 {[%clk 0:02:56.6]} 7... Bc7 {[%clk 0:02:44.6]} 8. Nc3 {[%clk
0:02:57.4]} 8... d5 {[%clk 0:02:35.8]} 9. cxd6 {[%clk 0:02:58.3]} 9... Bxd6
{[%clk 0:02:35.8]} 10. Nxe4 {[%clk 0:02:57.8]} 10... Nxe4 {[%clk 0:02:35.8]} 11.
Bxe4 {[%clk 0:02:58.7]} 11... Bh3 {[%clk 0:02:32.6]} 12. e3 {[%clk 0:02:56.6]}
12... Qd7 {[%clk 0:02:24.7]} 13. d4 {[%clk 0:02:53.8]} 13... O-O {[%clk
0:02:17.9]} 14. Nc5 {[%clk 0:02:52.6]} 14... Qc8 {[%clk 0:02:08.7]} 15. Bd2
{[%clk 0:02:43]} 15... Re8 {[%clk 0:02:00.5]} 16. Qc2 {[%clk 0:02:39.9]} 16...
g6 {[%clk 0:01:59.8]} 17. O-O-O {[%clk 0:02:38.8]} 17... Nd7 {[%clk 0:01:49.2]}
18. Bb4 {[%clk 0:02:29.4]} 18... Nf6 {[%clk 0:01:45.4]} 19. Bd3 {[%clk
0:02:20.4]} 19... Nd5 {[%clk 0:01:42.3]} 20. Bd2 {[%clk 0:02:15.3]} 20... a5
{[%clk 0:01:35]} 21. a3 {[%clk 0:02:13.2]} 21... b6 {[%clk 0:01:23]} 22. Ne4
{[%clk 0:02:07.5]} 22... Be7 {[%clk 0:01:16.7]} 23. Nc3 {[%clk 0:02:07.8]} 23...
Qb7 {[%clk 0:01:12.4]} 24. Nxd5 {[%clk 0:02:04.3]} 24... cxd5 {[%clk 0:01:12.4]}
25. Kb1 {[%clk 0:02:03.7]} 25... b5 {[%clk 0:01:11]} 26. Rc1 {[%clk 0:02:00.5]}
26... Rec8 {[%clk 0:01:09.5]} 27. Qb3 {[%clk 0:01:58.9]} 27... b4 {[%clk
0:01:08.3]} 28. Rxc8+ {[%clk 0:01:51.6]} 28... Rxc8 {[%clk 0:01:07.1]} 29. Rc1
{[%clk 0:01:52.5]} 29... Rxc1+ {[%clk 0:00:55.4]} 30. Bxc1 {[%clk 0:01:53.4]}
30... Qc6 {[%clk 0:00:51.8]} 31. a4 {[%clk 0:01:48.6]} 31... Bd7 {[%clk
0:00:37.3]} 32. Bb5 {[%clk 0:01:45.9]} 32... Bf5+ {[%clk 0:00:37.1]} 33. Bd3
{[%clk 0:01:42.1]} 33... Bxd3+ {[%clk 0:00:29.9]} 34. Qxd3 {[%clk 0:01:43]}
34... Qxa4 {[%clk 0:00:30.2]} 35. b3 {[%clk 0:01:43.6]} 35... Qc6 {[%clk
0:00:28.6]} 36. Qc2 {[%clk 0:01:42.1]} 36... Qb5 {[%clk 0:00:19.9]} 37. f3
{[%clk 0:01:39.2]} 37... Kg7 {[%clk 0:00:18.4]} 38. e4 {[%clk 0:01:38.4]} 38...
Bf6 {[%clk 0:00:17.9]} 39. Bb2 {[%clk 0:01:36.5]} 39... Qf1+ {[%clk 0:00:16.4]}
40. Ka2 {[%clk 0:01:37.1]} 40... Qxf3 {[%clk 0:00:16.7]} 41. e5 {[%clk
0:01:29.7]} 41... Bg5 {[%clk 0:00:16.5]} 42. h4 {[%clk 0:01:27.4]} 42... Be3
{[%clk 0:00:15.9]} 43. Qd3 {[%clk 0:01:24.4]} 43... Qf2 {[%clk 0:00:15.1]} 44.
Qd1 {[%clk 0:01:11.1]} 44... Qxg3 {[%clk 0:00:14.1]} 45. h5 {[%clk 0:01:09.8]}
45... Qf4 {[%clk 0:00:14.4]} 46. Qd3 {[%clk 0:00:51.6]} 46... gxh5 {[%clk
0:00:11.3]} 47. Qc2 {[%clk 0:00:44.4]} 47... h4 {[%clk 0:00:09.2]} 48. Qg2+
{[%clk 0:00:44.8]} 48... Qg3 {[%clk 0:00:09.6]} 49. Qxd5 {[%clk 0:00:45.7]}
49... h3 {[%clk 0:00:09.9]} 50. e6 {[%clk 0:00:43.3]} 50... fxe6 {[%clk
0:00:09.8]} 51. Qxe6 {[%clk 0:00:44.2]} 51... Bd2 {[%clk 0:00:06.9]} 52. Qe7+
{[%clk 0:00:35.2]} 52... Kh6 {[%clk 0:00:07.4]} 53. Qf6+ {[%clk 0:00:30.2]}
53... Qg6 {[%clk 0:00:06.6]} 54. Qh4+ {[%clk 0:00:29.3]} 54... Qh5 {[%clk
0:00:06.9]} 55. Qf6+ {[%clk 0:00:28.7]} 55... Qg6 {[%clk 0:00:06.9]} 56. Qf8+
{[%clk 0:00:26.6]} 56... Qg7 {[%clk 0:00:06.8]} 57. Qf3 {[%clk 0:00:27.5]} 57...
Bc3 {[%clk 0:00:06.8]} 58. Qxh3+ {[%clk 0:00:27.2]} 58... Kg6 {[%clk 0:00:07.1]}
59. Bxc3 {[%clk 0:00:25.4]} 59... bxc3 {[%clk 0:00:08]} 60. Qxc3 {[%clk
0:00:25.8]} 60... Qf6 {[%clk 0:00:06.4]} 61. Qd3+ {[%clk 0:00:23.2]} 61... Qf5
{[%clk 0:00:06.3]} 62. Qa6+ {[%clk 0:00:22.4]} 62... Qf6 {[%clk 0:00:06.6]} 63.
Qd3+ {[%clk 0:00:18.7]} 63... Qf5 {[%clk 0:00:07.1]} 64. Qd2 {[%clk 0:00:19.3]}
64... h5 {[%clk 0:00:07.1]} 65. d5 {[%clk 0:00:19.8]} 65... Qd7 {[%clk 0:00:07]}
66. d6 {[%clk 0:00:18.9]} 66... h4 {[%clk 0:00:07.2]} 67. Qd3+ {[%clk
0:00:14.8]} 67... Kg5 {[%clk 0:00:07.2]} 68. Qe3+ {[%clk 0:00:14]} 68... Kg4
{[%clk 0:00:07.5]} 69. Qe4+ {[%clk 0:00:12.7]} 69... Kg5 {[%clk 0:00:07.5]} 70.
Qe7+ {[%clk 0:00:13.6]} 70... Qxe7 {[%clk 0:00:07.2]} 71. dxe7 {[%clk
0:00:14.5]} 71... h3 {[%clk 0:00:07.8]} 72. e8=Q {[%clk 0:00:15.3]} 72... Kg4
{[%clk 0:00:07.8]} 73. Qh8 {[%clk 0:00:16.2]} 73... Kg3 {[%clk 0:00:03.8]} 74.
Ka3 {[%clk 0:00:16]} 74... Kg2 {[%clk 0:00:04.2]} 75. Ka4 {[%clk 0:00:16.4]}
75... h2 {[%clk 0:00:05.1]} 76. Kxa5 {[%clk 0:00:16.1]} 76... h1=Q {[%clk
0:00:06]} 77. Qxh1+ {[%clk 0:00:16]} 77... Kxh1 {[%clk 0:00:06.9]} 78. b4 {[%clk
0:00:16.6]} 78... Kg2 {[%clk 0:00:07.3]} 79. b5 {[%clk 0:00:17.5]} 79... Kf3
{[%clk 0:00:08.1]} 80. b6 {[%clk 0:00:18.3]} 80... Ke4 {[%clk 0:00:09]} 81. b7
{[%clk 0:00:18.7]} 81... Kd5 {[%clk 0:00:09.9]} 82. b8=Q {[%clk 0:00:19.3]}
82... Kc6 {[%clk 0:00:10.8]} 83. Qb5+ {[%clk 0:00:19.2]} 83... Kc7 {[%clk
0:00:11]} 84. Kb4 {[%clk 0:00:20.1]} 84... Kc8 {[%clk 0:00:11.3]} 85. Qb6 {[%clk
0:00:18.5]} 85... Kd7 {[%clk 0:00:11.2]} 86. Kc5 {[%clk 0:00:18.6]} 86... Kc8
{[%clk 0:00:11.6]} 87. Qa7 {[%clk 0:00:18.8]} 87... Kd8 {[%clk 0:00:11.7]} 88.
Kd6 {[%clk 0:00:19.7]} 88... Kc8 {[%clk 0:00:11.9]} 89. Qa8# {[%clk 0:00:19.7]}
1-0

[Event "Late-Titled-Tuesday-Blitz-October-24-2023"]
[Site "Chess.com"]
[Date "2023.10.24"]
[Round "2"]
[White "weakandslowchess"]
[Black "RCone"]
[Result "0-1"]
[WhiteElo "2019"]
[BlackElo "2417"]
[TimeControl "180+1"]
[EndTime "14:20:38 PDT"]
[Termination "RCone won by resignation"]

1. e4 {[%clk 0:03:00.9]} 1... g6 {[%clk 0:02:59.6]} 2. d4 {[%clk 0:02:59.9]}
2... d6 {[%clk 0:02:59.8]} 3. Nf3 {[%clk 0:02:59.8]} 3... Nf6 {[%clk 0:03:00.1]}
4. Nc3 {[%clk 0:02:49.6]} 4... Bg7 {[%clk 0:02:59.6]} 5. h3 {[%clk 0:02:50.1]}
5... O-O {[%clk 0:02:59.4]} 6. Bc4 {[%clk 0:02:50.7]} 6... Nc6 {[%clk
0:02:58.7]} 7. O-O {[%clk 0:02:50.4]} 7... e5 {[%clk 0:02:58.2]} 8. dxe5 {[%clk
0:02:49.1]} 8... dxe5 {[%clk 0:02:57]} 9. Qe2 {[%clk 0:02:44]} 9... h6 {[%clk
0:02:27.3]} 10. Rd1 {[%clk 0:02:40.5]} 10... Qe7 {[%clk 0:02:27]} 11. Nd5 {[%clk
0:02:31.5]} 11... Nxd5 {[%clk 0:02:26.4]} 12. exd5 {[%clk 0:02:31.6]} 12... Na5
{[%clk 0:02:19.3]} 13. Bd3 {[%clk 0:02:15.6]} 13... b6 {[%clk 0:01:55.9]} 14. b4
{[%clk 0:01:48.7]} 14... Nb7 {[%clk 0:01:55]} 15. Rb1 {[%clk 0:01:37.4]} 15...
f5 {[%clk 0:01:46]} 16. c4 {[%clk 0:01:18.6]} 16... Re8 {[%clk 0:01:39.1]} 17.
Bc2 {[%clk 0:01:13.6]} 17... a5 {[%clk 0:01:28.8]} 18. b5 {[%clk 0:01:06]} 18...
Nc5 {[%clk 0:01:17.2]} 19. Be3 {[%clk 0:01:01.2]} 19... Bd7 {[%clk 0:00:55.2]}
20. a4 {[%clk 0:00:59.6]} 20... Rad8 {[%clk 0:00:54.3]} 21. Qf1 {[%clk
0:00:55.4]} 21... Kh7 {[%clk 0:00:53.2]} 22. Bc1 {[%clk 0:00:54]} 22... Bf6
{[%clk 0:00:42.1]} 23. Nh2 {[%clk 0:00:52.8]} 23... e4 {[%clk 0:00:41.1]} 24.
Be3 {[%clk 0:00:50.6]} 24... Nb7 {[%clk 0:00:32.2]} 25. g4 {[%clk 0:00:48.3]}
25... Be5 {[%clk 0:00:30.6]} 26. Qg2 {[%clk 0:00:43.2]} 26... Rg8 {[%clk
0:00:24.7]} 27. g5 {[%clk 0:00:40.2]} 27... f4 {[%clk 0:00:23.3]} 28. Qxe4
{[%clk 0:00:33.2]} 28... Bf5 {[%clk 0:00:21.4]} 29. Qf3 {[%clk 0:00:26.6]} 29...
Bxc2 {[%clk 0:00:19.7]} 30. Bxf4 {[%clk 0:00:23.9]} 30... Bxb1 {[%clk
0:00:18.9]} 31. Rxb1 {[%clk 0:00:22.3]} 31... Bxf4 {[%clk 0:00:17.1]} 32. Qxf4
{[%clk 0:00:23.2]} 32... Qxg5+ {[%clk 0:00:17.5]} 33. Qxg5 {[%clk 0:00:21.6]}
33... hxg5 {[%clk 0:00:18.4]} 34. Ng4 {[%clk 0:00:21.8]} 34... Rgf8 {[%clk
0:00:17.8]} 35. Kg2 {[%clk 0:00:22.4]} 35... Rde8 {[%clk 0:00:17.8]} 36. Rc1
{[%clk 0:00:22.8]} 36... Nc5 {[%clk 0:00:18.1]} 37. Rc3 {[%clk 0:00:20]} 37...
Rf4 {[%clk 0:00:17.8]} 38. Rg3 {[%clk 0:00:19.7]} 38... Rxg4 {[%clk 0:00:17.5]}
39. hxg4 {[%clk 0:00:19.4]} 39... Re4 {[%clk 0:00:16.4]} 40. Rh3+ {[%clk
0:00:20.3]} 40... Kg7 {[%clk 0:00:16.1]} 41. f3 {[%clk 0:00:21]} 41... Rxc4
{[%clk 0:00:16.1]} 42. Kg3 {[%clk 0:00:21.8]} 42... Rxa4 {[%clk 0:00:15]} 43.
Rh2 {[%clk 0:00:22.4]} 43... Rf4 {[%clk 0:00:14.3]} 44. Re2 {[%clk 0:00:22.5]}
44... Rf7 {[%clk 0:00:14.5]} 45. Rc2 {[%clk 0:00:22]} 45... Rd7 {[%clk
0:00:14.1]} 46. Rc1 {[%clk 0:00:22.4]} 46... Rxd5 {[%clk 0:00:13.7]} 47. Re1
{[%clk 0:00:23.1]} 47... Rd7 {[%clk 0:00:13.7]} 48. Re5 {[%clk 0:00:22.6]} 48...
a4 {[%clk 0:00:12.9]} 49. Re3 {[%clk 0:00:20.8]} 49... Kf6 {[%clk 0:00:11.3]}
50. Ra3 {[%clk 0:00:21.4]} 50... Rd3 {[%clk 0:00:10.7]} 51. Ra1 {[%clk
0:00:22.3]} 51... a3 {[%clk 0:00:10.5]} 52. Ra2 {[%clk 0:00:21.8]} 52... Ke5
{[%clk 0:00:07.6]} 53. Ra1 {[%clk 0:00:22.3]} 53... Kd4 {[%clk 0:00:07.7]} 54.
Kf2 {[%clk 0:00:23]} 54... Kc4 {[%clk 0:00:07.7]} 55. Ke2 {[%clk 0:00:23.6]}
55... Kb4 {[%clk 0:00:07.7]} 56. Rb1+ {[%clk 0:00:23.2]} 56... Ka4 {[%clk
0:00:07.2]} 57. Ra1 {[%clk 0:00:23]} 57... Kb3 {[%clk 0:00:06.7]} 58. Rc1 {[%clk
0:00:23.4]} 58... a2 {[%clk 0:00:06.7]} 59. Rh1 {[%clk 0:00:21.5]} 59... Rc3
{[%clk 0:00:05.7]} 60. Ra1 {[%clk 0:00:21.2]} 60... Rc2+ {[%clk 0:00:05.7]} 61.
Ke3 {[%clk 0:00:20.1]} 61... Rh2 {[%clk 0:00:06.6]} 62. Kd4 {[%clk 0:00:19.6]}
62... Kb2 {[%clk 0:00:06.6]} 63. Rxa2+ {[%clk 0:00:17.4]} 63... Kxa2 {[%clk
0:00:06.8]} 64. Ke5 {[%clk 0:00:17.2]} 64... Kb3 {[%clk 0:00:05.8]} 65. Kf6
{[%clk 0:00:17.6]} 65... Kc4 {[%clk 0:00:05.8]} 66. Kxg5 {[%clk 0:00:18.5]}
66... Kxb5 {[%clk 0:00:05.9]} 67. f4 {[%clk 0:00:19.4]} 67... Ne4+ {[%clk
0:00:05.5]} 68. Kxg6 {[%clk 0:00:18.7]} 68... Nf2 {[%clk 0:00:05.8]} 69. g5
{[%clk 0:00:19.2]} 69... Nd3 {[%clk 0:00:05.7]} 70. f5 {[%clk 0:00:19.8]} 70...
Rg2 {[%clk 0:00:06.2]} 71. f6 {[%clk 0:00:20.7]} 71... Ne5+ {[%clk 0:00:06.3]}
72. Kf5 {[%clk 0:00:20.7]} 72... Nd7 {[%clk 0:00:06.2]} 73. g6 {[%clk
0:00:21.3]} 73... Rxg6 {[%clk 0:00:06]} 74. Kxg6 {[%clk 0:00:20.8]} 74... Nxf6
{[%clk 0:00:06.9]} 75. Kxf6 {[%clk 0:00:20.5]} 75... Kc4 {[%clk 0:00:07.8]} 76.
Ke5 {[%clk 0:00:21.3]} 76... b5 {[%clk 0:00:08.5]} 77. Ke4 {[%clk 0:00:21.8]}
77... b4 {[%clk 0:00:09.4]} 78. Ke3 {[%clk 0:00:22.5]} 78... Kc3 {[%clk
0:00:10.3]} 79. Ke2 {[%clk 0:00:22.7]} 79... b3 {[%clk 0:00:11.2]} 80. Ke3
{[%clk 0:00:23.2]} 80... b2 {[%clk 0:00:12.1]} 81. Ke4 {[%clk 0:00:24.1]} 81...
b1=Q+ {[%clk 0:00:12.9]} 82. Kd5 {[%clk 0:00:25]} 82... Qb6 {[%clk 0:00:13.4]}
83. Ke4 {[%clk 0:00:24.7]} 83... Qd6 {[%clk 0:00:13.6]} 0-1

[Event "Late-Titled-Tuesday-Blitz-October-24-2023"]
[Site "Chess.com"]
[Date "2023.10.24"]
[Round "2"]
[White "randy296"]
[Black "Mikhal867"]
[Result "0-1"]
[WhiteElo "2080"]
[BlackElo "2429"]
[TimeControl "180+1"]
[EndTime "14:20:55 PDT"]
[Termination "Mikhal867 won on time"]

1. e4 {[%clk 0:02:56.1]} 1... g6 {[%clk 0:02:59.5]} 2. d4 {[%clk 0:02:55.7]}
2... Bg7 {[%clk 0:02:59.9]} 3. Nc3 {[%clk 0:02:53]} 3... d6 {[%clk 0:03:00.3]}
4. Be3 {[%clk 0:02:52.9]} 4... a6 {[%clk 0:03:00.5]} 5. Qd2 {[%clk 0:02:52.7]}
5... b5 {[%clk 0:03:00.6]} 6. a3 {[%clk 0:02:52.1]} 6... Bb7 {[%clk 0:02:59.3]}
7. f3 {[%clk 0:02:48.2]} 7... Nd7 {[%clk 0:02:58.3]} 8. Be2 {[%clk 0:02:42.4]}
8... Nb6 {[%clk 0:02:53]} 9. h4 {[%clk 0:02:39.9]} 9... h5 {[%clk 0:02:50.7]}
10. Nh3 {[%clk 0:02:39.3]} 10... Nf6 {[%clk 0:02:42.4]} 11. Nf4 {[%clk
0:02:30.3]} 11... Nfd7 {[%clk 0:02:33.2]} 12. O-O {[%clk 0:02:17.9]} 12... e5
{[%clk 0:02:18.7]} 13. Nfd5 {[%clk 0:02:14.7]} 13... Nxd5 {[%clk 0:02:15]} 14.
exd5 {[%clk 0:02:08.6]} 14... Qxh4 {[%clk 0:02:10.5]} 15. dxe5 {[%clk
0:02:04.9]} 15... Bxe5 {[%clk 0:01:41]} 16. f4 {[%clk 0:02:03.1]} 16... Bg7
{[%clk 0:01:39.9]} 17. Rf3 {[%clk 0:01:49.1]} 17... O-O-O {[%clk 0:01:35]} 18.
f5 {[%clk 0:01:44.3]} 18... gxf5 {[%clk 0:01:17.8]} 19. Bg5 {[%clk 0:01:39.4]}
19... Qd4+ {[%clk 0:01:16.9]} 20. Kh1 {[%clk 0:01:32.9]} 20... Qxd2 {[%clk
0:01:16.5]} 21. Bxd2 {[%clk 0:01:31.7]} 21... Bxc3 {[%clk 0:01:01.9]} 22. Bxc3
{[%clk 0:01:31.2]} 22... Bxd5 {[%clk 0:01:00.8]} 23. Rxf5 {[%clk 0:01:30.4]}
23... Ne5 {[%clk 0:00:52.7]} 24. Bxe5 {[%clk 0:01:24]} 24... dxe5 {[%clk
0:00:52.7]} 25. Rxe5 {[%clk 0:01:24.2]} 25... Rhe8 {[%clk 0:00:49.4]} 26. Rxe8
{[%clk 0:01:20.5]} 26... Rxe8 {[%clk 0:00:49.3]} 27. Bd3 {[%clk 0:01:17.7]}
27... h4 {[%clk 0:00:44.4]} 28. Rf1 {[%clk 0:01:11.2]} 28... Rg8 {[%clk
0:00:39.2]} 29. Rf2 {[%clk 0:01:06.2]} 29... Kb7 {[%clk 0:00:37.8]} 30. Kh2
{[%clk 0:01:05.5]} 30... Kb6 {[%clk 0:00:31.3]} 31. b3 {[%clk 0:01:04.4]} 31...
c6 {[%clk 0:00:29.4]} 32. c4 {[%clk 0:01:03.2]} 32... bxc4 {[%clk 0:00:29.7]}
33. bxc4 {[%clk 0:01:02.8]} 33... Be6 {[%clk 0:00:30]} 34. Rf4 {[%clk 0:00:56]}
34... Rg3 {[%clk 0:00:28.5]} 35. Be4 {[%clk 0:00:52.9]} 35... Rxa3 {[%clk
0:00:27]} 36. Rxh4 {[%clk 0:00:50.3]} 36... Bxc4 {[%clk 0:00:27.1]} 37. Bxc6
{[%clk 0:00:50.3]} 37... Kxc6 {[%clk 0:00:22.7]} 38. Rxc4+ {[%clk 0:00:50.4]}
38... Kd6 {[%clk 0:00:21.5]} 39. Rf4 {[%clk 0:00:45.6]} 39... Ke6 {[%clk
0:00:20.7]} 40. Kg1 {[%clk 0:00:34.3]} 40... a5 {[%clk 0:00:20.7]} 41. Kf2
{[%clk 0:00:34.4]} 41... f6 {[%clk 0:00:20.8]} 42. g4 {[%clk 0:00:31.1]} 42...
Ke5 {[%clk 0:00:20.9]} 43. Rf5+ {[%clk 0:00:29.8]} 43... Ke6 {[%clk 0:00:21]}
44. Ke2 {[%clk 0:00:27]} 44... a4 {[%clk 0:00:21.2]} 45. Rf4 {[%clk 0:00:25.8]}
45... Ra2+ {[%clk 0:00:20]} 46. Kd3 {[%clk 0:00:25.8]} 46... a3 {[%clk 0:00:19]}
47. Kc3 {[%clk 0:00:22.4]} 47... Ra1 {[%clk 0:00:19.1]} 48. Ra4 {[%clk 0:00:20]}
48... Rg1 {[%clk 0:00:17.9]} 49. Kd2 {[%clk 0:00:14.9]} 49... Rg3 {[%clk
0:00:17.5]} 50. Ke2 {[%clk 0:00:13.9]} 50... Kf7 {[%clk 0:00:17.5]} 51. Kf2
{[%clk 0:00:14.1]} 51... Rb3 {[%clk 0:00:17.6]} 52. Ra5 {[%clk 0:00:12.7]} 52...
Kg6 {[%clk 0:00:17.5]} 53. Ke2 {[%clk 0:00:12.7]} 53... Rb2+ {[%clk 0:00:16.8]}
54. Kf3 {[%clk 0:00:12.4]} 54... a2 {[%clk 0:00:17.1]} 55. Kg3 {[%clk 0:00:12]}
55... Rc2 {[%clk 0:00:16.7]} 56. Kh3 {[%clk 0:00:10.3]} 56... Kf7 {[%clk
0:00:15.4]} 57. Kg3 {[%clk 0:00:10.4]} 57... Ke6 {[%clk 0:00:15.5]} 58. Kf4
{[%clk 0:00:10.2]} 58... Rd2 {[%clk 0:00:15.5]} 59. Ke4 {[%clk 0:00:09.5]} 59...
Rg2 {[%clk 0:00:14.5]} 60. Ra6+ {[%clk 0:00:07.7]} 60... Kf7 {[%clk 0:00:14.4]}
61. Kf3 {[%clk 0:00:08.1]} 61... Rd2 {[%clk 0:00:13.9]} 62. Kf4 {[%clk
0:00:08.3]} 62... Rb2 {[%clk 0:00:13.7]} 63. Ke4 {[%clk 0:00:08.5]} 63... Kg6
{[%clk 0:00:13.9]} 64. Kf4 {[%clk 0:00:08.7]} 64... Re2 {[%clk 0:00:13.7]} 65.
Ra5 {[%clk 0:00:07.6]} 65... Rf2+ {[%clk 0:00:13.1]} 66. Kg3 {[%clk 0:00:07.7]}
66... Re2 {[%clk 0:00:13]} 67. Kf4 {[%clk 0:00:08]} 67... Rb2 {[%clk 0:00:13.2]}
68. Kg3 {[%clk 0:00:08.2]} 68... Kf7 {[%clk 0:00:13.5]} 69. Kf4 {[%clk
0:00:08.5]} 69... Ke6 {[%clk 0:00:13.9]} 70. Ke4 {[%clk 0:00:08.7]} 70... Kd6
{[%clk 0:00:14.2]} 71. Ra6+ {[%clk 0:00:08]} 71... Kc5 {[%clk 0:00:14.3]} 72.
Ra5+ {[%clk 0:00:07]} 72... Kb4 {[%clk 0:00:14.4]} 73. Ra8 {[%clk 0:00:06.9]}
73... Kb3 {[%clk 0:00:14.2]} 74. Kf5 {[%clk 0:00:05.5]} 74... Rf2+ {[%clk
0:00:13.6]} 75. Kg6 {[%clk 0:00:05.2]} 75... Kb2 {[%clk 0:00:13.5]} 76. Rb8+
{[%clk 0:00:05.4]} 76... Kc1 {[%clk 0:00:13.6]} 77. Ra8 {[%clk 0:00:05.6]} 77...
Kb1 {[%clk 0:00:13.5]} 78. Rb8+ {[%clk 0:00:05.5]} 78... Rb2 {[%clk 0:00:13.5]}
79. Ra8 {[%clk 0:00:05.7]} 79... Rb6 {[%clk 0:00:12.3]} 80. Kf5 {[%clk
0:00:04.7]} 80... a1=Q {[%clk 0:00:11.4]} 81. Rxa1+ {[%clk 0:00:03.7]} 81...
Kxa1 {[%clk 0:00:11.6]} 0-1